bitfinex/quotes_ETHUSD_20250715
["timestamp","ask_amount","ask_price","bid_price","bid_amount"]
[1752559895895,5.476,2985.3,2985.2,3.5170593]
[1752559896916,0.1672,2985.7,2985.2,3.5170593]
[1752559897117,5.476,2985.6,2985.3,3.34973162]
[1752559897419,5.476,2985.6,2985.5,4.32312269]
[1752559897822,0.1692,2986.0,2985.5,1.439]
[1752559898115,0.002,2986.0,2985.9,4.15547398]
[1752559898322,0.002,2986.0,2985.9,14.78807398]
[1752559898495,0.002,2986.0,2985.9,24.47270425]
[1752559900107,1e-08,2986.0,2985.9,24.47270425]
[1752559900308,0.04,2986.9,2986.8,4.12256481]
[1752559900516,0.04,2986.9,2986.8,14.28976481]
[1752559900834,0.04,2986.9,2986.8,14.75516481]
[1752559901595,0.04,2986.9,2986.8,14.28976481]
[1752559901795,0.04,2986.9,2986.8,14.75516481]
[1752559902002,0.04,2986.9,2986.8,17.11269988]
[1752559905411,0.04,2986.9,2986.8,22.57969988]
[1752559906033,0.04,2986.9,2986.8,17.11269988]
[1752559907526,0.04,2986.9,2986.8,14.28976481]
[1752559908058,0.04,2986.9,2986.8,13.51526481]
[1752559910326,0.04,2986.9,2986.8,10.1672]
[1752559911054,0.4813,2986.9,2986.5,3.34832547]
[1752559911220,0.4813,2986.9,2986.7,0.1672]
[1752559911221,0.04,2986.9,2986.7,0.1672]
[1752559911420,0.04,2986.9,2985.8,3.34918614]
[1752559911421,1.2384,2986.8,2985.8,3.34918614]
[1752559911632,5.461,2986.7,2986.3,3.34851869]
[1752559911856,0.4413,2986.6,2986.3,3.34851869]
[1752559912543,0.7971,2986.8,2985.8,0.45642861]
[1752559912753,0.04,2986.9,2986.8,10.0]
[1752559912968,5.5,2986.9,2986.8,3.34806481]
[1752559913171,5.5,2986.9,2986.7,13.34808403]
[1752559913172,0.04,2986.9,2986.7,13.34808403]
[1752559913315,0.04,2986.9,2986.1,10.0]
[1752559913517,0.04,2986.9,2986.6,10.0]
[1752559913742,0.04,2986.9,2986.4,10.0]
[1752559914024,5.459,2986.8,2986.1,10.0]
[1752559914281,0.04,2986.9,2986.8,3.34806481]
[1752559914464,0.04,2986.9,2986.8,13.34806481]
[1752559915171,0.4813,2986.9,2986.3,10.0]
[1752559915470,0.4813,2986.9,2986.5,10.0]
[1752559915699,0.4413,2986.8,2986.5,10.0]
[1752559915847,0.04,2986.9,2986.5,10.0]
[1752559916051,0.4413,2986.7,2986.5,3.34840093]
[1752559916252,0.4413,2986.7,2986.0,10.7557]
[1752559916478,0.4413,2986.7,2986.5,3.34831528]
[1752559916678,0.4413,2986.7,2986.1,3.34884967]
[1752559916883,1.1968,2986.7,2986.2,13.34872668]
[1752559917067,0.4413,2986.6,2986.2,10.0]
[1752559917253,0.4413,2986.5,2986.2,10.0]
[1752559917455,0.4413,2986.4,2986.0,3.34992975]
[1752559917655,0.4413,2986.3,2986.0,0.001]
[1752559918069,0.4413,2986.2,2986.0,0.001]
[1752559918291,0.4413,2986.2,2986.0,3.34995893]
[1752559918469,5.456,2986.1,2986.0,0.001]
[1752559918858,5.8973,2986.1,2986.0,0.001]
[1752559919891,6.48703,2986.1,2986.0,0.001]
[1752559920054,0.4413,2986.1,2986.0,0.001]
[1752559920385,5.8963,2986.1,2986.0,0.001]
[1752559920586,10.03484967,2986.1,2986.0,0.001]
[1752559922190,10.01384967,2986.1,2986.0,0.001]
[1752559922984,10.01184967,2986.1,2986.0,0.001]
[1752559923566,6.663,2986.1,2986.0,0.001]
[1752559924487,10.01184967,2986.1,2986.0,0.001]
[1752559924675,10.01084967,2986.1,2986.0,0.001]
[1752559927469,10.00884967,2986.1,2986.0,0.001]
[1752559927669,4.55884967,2986.1,2986.0,0.001]
[1752559927889,10.00884967,2986.1,2986.0,0.001]
[1752559928086,5.45,2986.1,2986.0,0.001]
[1752559928890,9.24014967,2986.1,2986.0,0.001]
[1752559929786,10.02874967,2986.1,2986.0,0.001]
[1752559931966,4.57874967,2986.1,2986.0,0.001]
[1752559932407,10.02574967,2986.1,2986.0,0.001]
[1752559933895,10.02474967,2986.1,2986.0,0.001]
[1752559935300,20.02474967,2986.1,2986.0,0.001]
[1752559936192,10.02474967,2986.1,2986.0,0.001]
[1752559937404,4.57874967,2986.1,2986.0,0.001]
[1752559937716,0.7886,2986.1,2986.0,0.001]
[1752559937881,10.02174967,2986.1,2986.0,0.001]
[1752559939397,10.02374967,2986.1,2986.0,0.001]
[1752559939567,10.02274967,2986.1,2986.0,0.001]
[1752559940508,10.57274967,2986.1,2986.0,0.001]
[1752559940908,20.57274967,2986.1,2986.0,0.001]
[1752559941204,21.29254628,2986.1,2986.0,0.001]
[1752559943900,15.85054628,2986.1,2986.0,0.001]
[1752559944213,4.58074967,2986.1,2986.0,0.001]
[1752559944393,10.01974967,2986.1,2986.0,0.001]
[1752559944782,10.73979004,2986.1,2986.0,0.001]
[1752559945081,10.01974967,2986.1,2986.0,0.001]
[1752559945916,10.56974967,2986.1,2986.0,0.001]
[1752559946093,11.29049767,2986.1,2986.0,0.001]
[1752559946300,10.56974967,2986.1,2986.0,0.001]
[1752559946699,3.35003524,2985.1,2984.8,0.001]
[1752559946873,0.1672,2984.9,2984.8,0.001]
[1752559947077,3.51739598,2984.9,2984.8,0.001]
[1752559948113,3.94899598,2984.9,2984.8,0.001]
[1752559950675,9.38399598,2984.9,2984.8,0.001]
[1752559951319,6.0338,2984.9,2984.8,0.001]
[1752559951473,9.38299598,2984.9,2984.8,0.001]
[1752559953129,3.94899598,2984.9,2984.8,0.001]
[1752559953334,9.38199598,2984.9,2984.8,0.001]
[1752559953501,6.0318,2984.9,2984.8,0.001]
[1752559953709,9.38199598,2984.9,2984.8,0.001]
[1752559954694,0.5988,2984.9,2984.8,0.001]
[1752559954900,5.5992,2984.9,2984.8,0.001]
[1752559955634,5.5982,2984.9,2984.8,0.001]
[1752559956232,0.1672,2984.9,2984.8,1.15384167]
[1752559956429,5.431,2984.9,2984.8,0.8187]
[1752559957644,5.431,2984.9,2984.8,0.001]
[1752559957645,8.78119598,2984.9,2984.8,0.001]
[1752559957932,9.99799598,2984.9,2984.8,0.001]
[1752559958141,0.4316,2984.9,2984.8,0.001]
[1752559958337,5.43,2984.9,2984.8,0.001]
[1752559958543,8.78019598,2984.9,2984.8,0.001]
[1752559958697,9.21179598,2984.9,2984.8,0.001]
[1752559959211,3.35010352,2985.0,2984.8,0.001]
[1752559959413,5.43,2984.9,2984.8,0.001]
[1752559959729,8.78019598,2984.9,2984.8,0.001]
[1752559959934,9.21179598,2984.9,2984.8,0.001]
[1752559960501,10.02469598,2984.9,2984.8,0.001]
[1752559962503,10.02169598,2984.9,2984.8,0.001]
[1752559963050,4.59469598,2984.9,2984.8,0.001]
[1752559963337,10.02169598,2984.9,2984.8,0.001]
[1752559964299,4.59469598,2984.9,2984.8,0.001]
[1752559964500,10.01969598,2984.9,2984.8,0.001]
[1752559965419,3.35019598,2984.9,2984.8,0.001]
[1752559965710,8.77519598,2984.9,2984.8,0.001]
[1752559966425,9.20679598,2984.9,2984.8,0.001]
[1752559966630,8.77519598,2984.9,2984.8,0.001]
[1752559966813,9.20679598,2984.9,2984.8,0.001]
[1752559967916,3.78179598,2984.9,2984.8,0.001]
[1752559968247,9.20479598,2984.9,2984.8,0.001]
[1752559969907,3.35019598,2984.9,2984.8,0.001]
[1752559970108,8.77119598,2984.9,2984.8,0.001]
[1752559970517,0.796,2985.2,2984.8,0.001]
[1752559970717,5.421,2985.1,2984.8,0.001]
[1752559970919,5.421,2985.0,2984.8,0.001]
[1752559971257,5.421,2984.9,2984.8,0.4433]
[1752559971551,5.421,2984.9,2984.8,3.79360822]
[1752559971736,5.421,2984.9,2984.8,0.001]
[1752559974425,0.1672,2984.9,2984.8,3.79353684]
[1752559974620,3.34952269,2985.5,2984.9,0.8022]
[1752559974931,0.90358408,2986.0,2985.4,0.8022]
[1752559975122,0.1672,2985.7,2985.5,3.34943186]
[1752559975322,5.417,2985.6,2985.4,4.15179156]
[1752559975561,5.417,2985.6,2985.4,0.8022]
[1752559975914,5.417,2985.6,2985.5,0.3104227]
[1752559976859,9.9886105,2985.6,2985.5,0.3104227]
[1752559977028,20.5386105,2985.6,2985.5,0.3104227]
[1752559977234,21.26100956,2985.6,2985.5,0.3104227]
[1752559977624,21.25900956,2985.6,2985.5,0.3104227]
[1752559978360,9.9866105,2985.6,2985.5,0.3104227]
[1752559979153,9.9856105,2985.6,2985.5,0.3104227]
[1752559979354,10.7079709,2985.6,2985.5,0.3104227]
[1752559979558,0.7223604,2985.6,2985.5,0.3104227]
[1752559979757,0.1672,2985.7,2985.5,0.3104227]
[1752559980057,5.413,2985.6,2985.3,0.782]
[1752559980275,0.1672,2985.7,2985.4,3.34963488]
[1752559980420,0.1672,2985.7,2985.6,3.3494105]
[1752559980621,5.5802,2985.7,2985.6,0.31046163]
[1752559980931,5.5802,2985.7,2985.4,3.34959089]
[1752559981174,5.5802,2985.7,2985.5,3.34952135]
[1752559981336,5.5802,2985.7,2985.3,0.782]
[1752559981854,5.5802,2985.7,2985.3,4.13173501]
[1752559982022,5.5802,2985.7,2985.3,4.13173755]
[1752559982436,5.5802,2985.7,2985.3,0.782]
[1752559983273,5.5802,2985.7,2985.3,4.13172139]
[1752559983861,5.5802,2985.7,2985.3,0.782]
[1752559984040,5.5802,2985.7,2985.4,3.34954267]
[1752559984238,5.5802,2985.7,2985.3,4.57399817]
[1752559985468,5.5802,2985.7,2985.3,0.782]
[1752559985771,0.1672,2985.7,2985.3,0.782]
[1752559985926,5.41,2985.6,2985.5,3.34952017]
[1752559986126,5.41,2985.6,2985.5,3.65977916]
[1752559986568,5.41,2985.6,2985.5,0.31025899]
[1752559987161,8.7594105,2985.6,2985.5,0.31025899]
[1752559987359,5.41,2985.6,2985.5,0.31025899]
[1752559987565,8.7594105,2985.6,2985.5,0.31025899]
[1752559987740,5.41,2985.6,2985.5,0.31025899]
[1752559988059,5.41,2985.6,2985.3,0.782]
[1752559988060,8.75941145,2985.6,2985.3,0.782]
[1752559988261,3.79742269,2985.5,2985.4,0.31007553]
[1752559988633,3.79742269,2985.5,2984.8,10.7842]
[1752559988634,0.4479,2985.5,2984.8,0.7842]
[1752559988839,3.35005651,2985.1,2984.9,0.31011968]
[1752559989049,3.79795651,2985.1,2985.0,0.31011968]
[1752559989228,9.20395651,2985.1,2985.0,0.31011968]
[1752559989430,5.8539,2985.1,2985.0,0.31011968]
[1752559989656,9.20387152,2985.1,2985.0,0.31011968]
[1752559990774,8.75597152,2985.1,2985.0,0.31011968]
[1752559993430,9.20387152,2985.1,2985.0,0.31011968]
[1752559996368,3.34986151,2985.2,2985.0,0.31011968]
[1752559996565,0.4479,2985.5,2985.1,0.31011968]
[1752559996788,3.35019598,2984.9,2984.8,0.001]
[1752559997070,8.75119598,2984.9,2984.8,0.31133965]
[1752559997675,8.75119598,2984.9,2984.8,0.31135617]
[1752559998586,9.19909598,2984.9,2984.8,0.31135617]
[1752560001194,10.56709598,2984.9,2984.8,0.31135617]
[1752560001504,10.56709598,2984.9,2984.8,1e-08]
[1752560002293,30.97308754,2984.9,2984.8,1e-08]
[1752560003087,21.28845727,2984.9,2984.8,1e-08]
[1752560003275,21.28345727,2984.9,2984.8,1e-08]
[1752560003470,21.28320812,2984.9,2984.8,1e-08]
[1752560003674,15.88720812,2984.9,2984.8,1e-08]
[1752560003960,21.28320812,2984.9,2984.8,1e-08]
[1752560004487,3.35097072,2984.3,2984.1,0.041]
[1752560004692,5.396,2984.2,2984.1,0.041]
[1752560004858,8.74698183,2984.2,2984.1,0.041]
[1752560005057,5.396,2984.2,2984.1,0.041]
[1752560005407,3.35050016,2984.7,2984.2,0.7766]
[1752560005574,0.1672,2984.4,2984.3,0.4622382]
[1752560005775,3.35008235,2985.1,2984.3,0.4622382]
[1752560005985,0.1672,2984.7,2984.2,0.9438]
[1752560006191,5.395,2984.6,2984.2,4.29477439]
[1752560006798,5.395,2984.6,2984.2,4.74847439]
[1752560006998,8.74554949,2984.6,2984.2,1.2303]
[1752560007200,5.8667,2984.6,2984.2,0.7766]
[1752560007373,3.51818183,2984.2,2984.1,0.041]
[1752560007694,9.72068183,2984.2,2984.1,0.041]
[1752560007901,10.19238183,2984.2,2984.1,0.041]
[1752560008475,0.1672,2984.2,2984.1,0.041]
[1752560008690,0.1672,2984.2,2984.1,1.2985]
[1752560008902,5.5602,2984.2,2984.1,1.2985]
[1752560009217,5.5602,2984.2,2984.1,0.8448]
[1752560011614,8.91118183,2984.2,2984.1,0.041]
[1752560012115,9.38288183,2984.2,2984.1,0.041]
[1752560012318,5.5602,2984.2,2984.1,0.041]
[1752560012481,0.1672,2984.2,2984.1,0.041]
[1752560012812,8.90818183,2984.2,2984.1,0.041]
[1752560013379,8.90818183,2984.2,2984.1,0.35144414]
[1752560016010,8.90818183,2984.2,2984.1,0.041]
[1752560017314,5.5572,2984.2,2984.1,0.041]
[1752560017676,0.1672,2984.2,2984.1,0.041]
[1752560018077,5.5542,2984.2,2984.1,1.2645]
[1752560018514,5.5542,2984.2,2984.1,1.72606203]
[1752560018515,5.386,2984.2,2984.1,1.72606203]
[1752560018718,5.386,2984.2,2984.1,4.61559413]
[1752560019013,4.07157894,2984.9,2984.4,3.35075673]
[1752560019172,0.1672,2984.6,2984.3,3.35084249]
[1752560019376,5.386,2984.5,2984.3,3.35084249]
[1752560019624,5.386,2984.5,2984.3,3.80454249]
[1752560019822,0.1672,2984.6,2984.3,4.6179043]
[1752560020002,1.2339,2985.3,2984.4,1.2235]
[1752560020204,0.1672,2984.8,2984.7,4.16802047]
[1752560020406,5.5522,2984.8,2984.7,4.16802047]
[1752560020580,5.5522,2984.8,2984.7,4.62172047]
[1752560020781,5.5522,2984.8,2984.7,5.41895702]
[1752560020998,5.385,2984.8,2984.7,5.41895702]
[1752560021301,5.385,2984.8,2984.7,2.06853655]
[1752560021494,5.385,2984.8,2984.7,1.61483655]
[1752560021693,3.35024508,2984.9,2984.5,0.7545]
[1752560021895,3.35042083,2984.7,2984.5,0.7545]
[1752560022100,5.5512,2984.6,2984.2,0.7545]
[1752560022298,8.90183918,2984.6,2984.2,0.7545]
[1752560022624,0.1672,2984.4,2984.2,0.7545]
[1752560022922,5.5502,2984.4,2984.2,0.7545]
[1752560023921,5.5502,2984.4,2984.1,0.041]
[1752560023922,3.35087389,2984.3,2984.1,0.041]
[1752560024216,5.383,2984.2,2984.1,0.041]
[1752560026820,9.20568183,2984.2,2984.1,0.041]
[1752560027041,5.5502,2984.2,2984.1,0.041]
[1752560027525,9.37288183,2984.2,2984.1,0.041]
[1752560028089,6.0219,2984.2,2984.1,0.041]
[1752560028747,9.37288183,2984.2,2984.1,0.041]
[1752560032322,0.1672,2984.2,2984.1,0.041]
[1752560033037,5.5432,2984.2,2984.1,0.041]
[1752560034344,0.002,2984.8,2984.2,0.752]
[1752560034553,0.1672,2984.3,2984.1,0.041]
[1752560034748,9.16978183,2984.2,2984.1,0.041]
[1752560036474,0.4438,2984.2,2984.1,0.041]
[1752560036786,9.16878183,2984.2,2984.1,0.041]
[1752560037370,8.72498183,2984.2,2984.1,0.041]
[1752560037578,9.16878183,2984.2,2984.1,0.041]
[1752560038039,3.79478183,2984.2,2984.1,0.041]
[1752560038241,9.16678183,2984.2,2984.1,0.041]
[1752560038635,19.16678183,2984.2,2984.1,0.041]
[1752560038836,3.79478183,2984.2,2984.1,0.041]
[1752560039079,9.16678183,2984.2,2984.1,0.041]
[1752560039885,9.16578183,2984.2,2984.1,0.041]
[1752560040376,0.4438,2984.5,2984.1,0.041]
[1752560040580,8.72182652,2984.4,2984.1,0.041]
[1752560040775,3.35088664,2984.3,2984.1,0.041]
[1752560040974,5.5382,2984.2,2984.1,0.041]
[1752560041681,0.1672,2984.2,2984.1,0.041]
[1752560041868,5.5382,2984.2,2984.1,0.041]
[1752560042078,0.1672,2984.2,2984.1,0.041]
[1752560042255,5.5372,2984.2,2984.1,0.041]
[1752560043377,0.1672,2984.2,2984.1,0.041]
[1752560043578,0.002,2984.8,2984.2,3.35096131]
[1752560043764,0.002,2984.8,2984.4,0.7974]
[1752560043765,0.1672,2984.6,2984.4,0.7974]
[1752560043965,5.369,2984.5,2984.4,0.7974]
[1752560046441,0.1672,2984.6,2984.4,0.7974]
[1752560046785,5.367,2984.6,2984.5,3.81604499]
[1752560047154,5.367,2984.6,2984.5,0.4654]
[1752560047772,5.367,2984.6,2984.4,0.7974]
[1752560048079,5.367,2984.6,2984.4,4.1481469]
[1752560048483,5.367,2984.6,2984.4,0.7974]
[1752560048685,0.1672,2984.4,2984.1,0.8364]
[1752560048864,0.1672,2984.2,2984.1,0.041]
[1752560049182,3.51818183,2984.2,2984.1,0.041]
[1752560049684,0.1672,2984.2,2984.1,0.041]
[1752560051057,5.5312,2984.2,2984.1,0.041]
[1752560051479,5.5302,2984.2,2984.1,0.041]
[1752560052473,8.88118183,2984.2,2984.1,0.041]
[1752560052803,10.09048183,2984.2,2984.1,0.041]
[1752560053093,5.974,2984.2,2984.1,0.041]
[1752560053315,5.5292,2984.2,2984.1,0.041]
[1752560053917,0.1672,2984.2,2984.1,0.041]
[1752560054075,5.362,2984.2,2984.1,4.68319413]
[1752560054264,5.362,2984.2,2984.1,5.4867348]
[1752560054813,5.362,2984.2,2984.1,1.67024067]
[1752560054975,9.15678183,2984.2,2984.1,0.041]
[1752560055969,5.362,2984.2,2984.1,0.041]
[1752560056369,5.361,2984.2,2984.1,0.041]
[1752560057988,5.361,2984.2,2984.1,3.39209413]
[1752560058305,5.5272,2984.2,2984.1,3.39209413]
[1752560059003,0.1672,2984.2,2984.1,3.39209413]
[1752560059181,5.5262,2984.2,2984.1,3.39209413]
[1752560059577,5.359,2984.2,2984.1,1.7344163]
[1752560059784,5.359,2984.2,2984.1,4.62011043]
[1752560059982,0.1672,2984.4,2984.3,3.35086955]
[1752560060182,5.5252,2984.4,2984.3,3.35086955]
[1752560061768,1.20211211,2985.5,2984.3,4.11526955]
[1752560061968,1.20211211,2985.5,2984.1,3.39209413]
[1752560061969,0.34647238,2987.2,2987.1,3.34772856]
[1752560062168,0.002,2987.2,2987.1,13.34772856]
[1752560062796,0.002,2987.2,2987.1,14.01382856]
[1752560064300,0.002,2987.2,2987.1,14.01292856]
[1752560064707,0.002,2987.2,2987.1,14.01382856]
[1752560066240,5.543,2987.5,2987.1,14.01382856]
[1752560066241,5.543,2987.5,2987.3,3.3474716]
[1752560066411,5.543,2987.5,2987.4,0.30756891]
[1752560066614,5.9912,2987.5,2987.4,0.30756891]
[1752560068533,9.33848033,2987.5,2987.4,0.30756891]
[1752560070293,3.347637,2987.2,2986.6,3.34825359]
[1752560070496,9.3179621,2987.1,2986.7,0.30656208]
[1752560070696,5.9662,2987.0,2986.8,0.30656208]
[1752560070934,5.9662,2987.0,2986.9,0.30656208]
[1752560072009,9.31404064,2987.0,2986.9,0.30656208]
[1752560073138,3.34807819,2986.8,2986.3,2.94112957]
[1752560073436,0.1672,2986.6,2986.4,0.30646998]
[1752560073628,0.1672,2986.6,2986.5,0.30646998]
[1752560073826,3.34828902,2986.6,2986.5,0.30646998]
[1752560074235,9.30348902,2986.6,2986.5,0.30646998]
[1752560076047,3.79619055,2986.9,2986.5,0.30646998]
[1752560076200,3.79619055,2986.9,2986.3,3.34855446]
[1752560076201,5.505,2986.8,2986.6,0.30646998]
[1752560076401,9.30126481,2986.8,2986.7,0.30646998]
[1752560077406,19.30126481,2986.8,2986.7,0.30646998]
[1752560078340,13.79626481,2986.8,2986.7,0.30646998]
[1752560078520,19.29126481,2986.8,2986.7,0.30646998]
[1752560078837,13.79626481,2986.8,2986.7,0.30646998]
[1752560079203,19.28926481,2986.8,2986.7,0.30646998]
[1752560080029,13.79626481,2986.8,2986.7,0.30646998]
[1752560080204,19.28526481,2986.8,2986.7,0.30646998]
[1752560080741,19.28426481,2986.8,2986.7,0.30646998]
[1752560081260,14.34626481,2986.8,2986.7,0.30646998]
[1752560081448,19.83026481,2986.8,2986.7,0.30646998]
[1752560081755,27.86726481,2986.8,2986.7,0.30646998]
[1752560082058,28.68046481,2986.8,2986.7,0.30646998]
[1752560082357,3.34898888,2986.0,2985.6,0.7538]
[1752560082660,3.34876522,2986.2,2985.7,0.30723452]
[1752560082661,5.69536073,2985.9,2985.7,0.30723452]
[1752560082837,5.69536073,2985.9,2985.8,0.30723452]
[1752560083157,5.69446073,2985.9,2985.8,0.30723452]
[1752560085139,5.69446073,2985.9,2985.8,0.30753142]
[1752560086325,5.29242523,2985.9,2985.8,0.30753142]
[1752560087361,4.74800216,2985.9,2985.8,0.30753142]
[1752560087764,7.92987614,2985.9,2985.8,0.30753142]
[1752560088483,3.79727398,2985.9,2985.8,0.30753142]
[1752560088679,9.26127398,2985.9,2985.8,0.30753142]
[1752560089964,3.79727398,2985.9,2985.8,0.30753142]
[1752560090161,9.25527398,2985.9,2985.8,0.30753142]
[1752560091182,3.34981438,2985.3,2985.1,0.04]
[1752560091382,3.34962487,2985.5,2985.1,0.04]
[1752560091577,5.452,2985.4,2985.2,0.30934027]
[1752560091743,5.452,2985.3,2985.1,0.04]
[1752560091937,0.4725,2985.8,2985.2,0.30934844]
[1752560092169,5.451,2985.7,2985.3,0.30934844]
[1752560092366,5.451,2985.7,2985.4,0.30934844]
[1752560092571,3.8219105,2985.6,2985.5,0.30934844]
[1752560092838,9.2719105,2985.6,2985.5,0.30934844]
[1752560093554,3.34935096,2985.7,2985.5,0.30934844]
[1752560093759,3.34935096,2985.7,2985.6,0.30934844]
[1752560094086,9.26779832,2985.7,2985.6,0.30934844]
[1752560094245,3.3491239,2985.9,2985.6,0.30934844]
[1752560094600,8.79219303,2985.8,2985.7,0.30934844]
[1752560094966,9.26469303,2985.8,2985.7,0.30934844]
[1752560096916,3.34963488,2985.4,2985.3,0.001]
[1752560097066,8.78563488,2985.4,2985.3,0.001]
[1752560097397,9.25813488,2985.4,2985.3,0.001]
[1752560097598,8.85597218,2985.4,2985.3,0.001]
[1752560100717,9.68267218,2985.4,2985.3,0.001]
[1752560100861,10.23267218,2985.4,2985.3,0.001]
[1752560101061,13.84070224,2985.4,2985.3,0.001]
[1752560102000,66.13861607,2985.4,2985.3,0.001]
[1752560102159,41.56061607,2985.4,2985.3,0.001]
[1752560102803,4.1097593,2985.2,2985.1,1e-08]
[1752560103108,49.5287593,2985.2,2985.1,1e-08]
[1752560103317,21.53538028,2985.2,2985.1,1e-08]
[1752560103470,52.55788028,2985.2,2985.1,1e-08]
[1752560104820,52.55488028,2985.2,2985.1,1e-08]
[1752560105104,16.58888028,2985.2,2985.1,1e-08]
[1752560105514,22.00888028,2985.2,2985.1,1e-08]
[1752560105800,5.35648028,2985.2,2985.1,1e-08]
[1752560106183,10.77448028,2985.2,2985.1,1e-08]
[1752560107367,2.00662098,2985.2,2985.1,1e-08]
[1752560107589,0.1672,2985.2,2985.1,0.80020001]
[1752560107804,5.5812,2985.2,2985.1,0.80020001]
[1752560108006,5.5812,2985.2,2985.1,1.10970001]
[1752560108411,5.5812,2985.2,2985.1,0.80020001]
[1752560108917,5.5812,2985.2,2985.1,1.11017189]
[1752560110311,5.5762,2985.2,2985.1,1.11017189]
[1752560112517,0.1672,2985.2,2985.1,1.11017189]
[1752560112722,5.5712,2985.2,2985.1,1.86570748]
[1752560113017,5.404,2985.2,2985.1,1.86574074]
[1752560113384,5.404,2985.2,2985.1,5.21571226]
[1752560113385,5.4,2985.2,2985.1,5.21571226]
[1752560113585,5.4,2985.2,2985.1,1.86574074]
[1752560114304,0.1672,2985.4,2985.1,1.55624074]
[1752560114504,5.4,2985.2,2985.1,4.15017153]
[1752560114702,5.4,2985.2,2985.1,4.46022336]
[1752560115022,5.4,2985.2,2985.1,1.41975184]
[1752560115890,5.4,2985.2,2985.1,1.11025184]
[1752560116492,5.4,2985.2,2985.1,1.41975184]
[1752560116708,5.4,2985.2,2985.1,1.91346582]
[1752560116913,0.1672,2985.4,2985.1,1.91346582]
[1752560117148,5.394,2985.3,2985.2,0.61955183]
[1752560117485,5.394,2985.3,2985.2,3.96941113]
[1752560117684,5.394,2985.3,2985.2,0.61955183]
[1752560117889,5.394,2985.3,2985.2,1.16261189]
[1752560118332,5.388,2985.3,2985.2,1.16261189]
[1752560118544,5.386,2985.3,2985.2,1.16261189]
[1752560118739,5.386,2985.3,2985.2,0.85256006]
[1752560119045,0.002,2985.4,2985.3,3.34974709]
[1752560119245,0.002,2985.4,2985.3,5.61092878]
[1752560119820,0.002,2985.4,2985.3,15.61092878]
[1752560120016,0.002,2985.4,2985.3,15.57743131]
[1752560121111,5.385,2985.4,2985.3,1.07920564]
[1752560121449,5.385,2985.4,2985.3,0.31040564]
[1752560121820,5.385,2985.4,2985.1,1e-08]
[1752560122038,8.73465163,2985.4,2985.2,0.31045345]
[1752560122205,8.73465163,2985.4,2985.3,0.31045345]
[1752560122551,8.73465163,2985.4,2985.3,0.31045449]
[1752560123512,5.385,2985.4,2985.3,0.31045449]
[1752560124107,0.002,2985.4,2985.3,0.31045449]
[1752560124445,8.73163488,2985.4,2985.3,0.31045449]
[1752560124943,8.73163488,2985.4,2985.3,0.31045576]
[1752560125148,9.20263488,2985.4,2985.3,0.31045576]
[1752560126257,8.73163488,2985.4,2985.3,0.31045576]
[1752560127053,5.381,2985.4,2985.3,0.31045576]
[1752560127257,3.35163488,2985.4,2985.3,0.31045576]
[1752560127458,8.72563488,2985.4,2985.3,0.31045576]
[1752560128266,9.19663488,2985.4,2985.3,0.31045576]
[1752560130338,3.82263488,2985.4,2985.3,0.31045576]
[1752560130550,9.19563488,2985.4,2985.3,0.31045576]
[1752560130862,3.3498593,2985.2,2985.1,1e-08]
[1752560131066,8.7228593,2985.2,2985.1,0.31053981]
[1752560131362,3.3498593,2985.2,2985.1,0.31053981]
[1752560131525,8.7228593,2985.2,2985.1,0.31053981]
[1752560131953,3.8208593,2985.2,2985.1,0.31053981]
[1752560132161,9.1938593,2985.2,2985.1,0.31053981]
[1752560134151,9.1938593,2985.2,2985.1,0.31042898]
[1752560136869,10.0175593,2985.2,2985.1,0.31042898]
[1752560137032,10.5675593,2985.2,2985.1,0.31042898]
[1752560137542,10.5675593,2985.2,2985.0,0.001]
[1752560137543,14.89087152,2985.1,2985.0,0.001]
[1752560137742,15.36187152,2985.1,2985.0,0.001]
[1752560139167,4.65362047,2984.7,2984.6,0.001]
[1752560139368,19.7225343,2984.7,2984.6,0.001]
[1752560139861,19.7225343,2984.7,2984.6,1e-08]
[1752560139862,30.1935343,2984.7,2984.6,1e-08]
[1752560141047,15.12462047,2984.7,2984.6,1e-08]
[1752560141378,20.49862047,2984.7,2984.6,1e-08]
[1752560142775,50.49862047,2984.7,2984.6,1e-08]
[1752560143886,45.12462047,2984.7,2984.6,1e-08]
[1752560144186,50.49862047,2984.7,2984.6,1e-08]
[1752560144791,20.49862047,2984.7,2984.6,1e-08]
[1752560145157,50.49862047,2984.7,2984.6,1e-08]
[1752560145365,45.12462047,2984.7,2984.6,1e-08]
[1752560145561,50.49862047,2984.7,2984.6,1e-08]
[1752560145764,4.72628183,2984.2,2984.1,0.041]
[1752560145995,29.79519566,2984.2,2984.1,0.041]
[1752560146356,30.26619566,2984.2,2984.1,0.041]
[1752560149495,20.57128183,2984.2,2984.1,0.35025291]
[1752560150197,15.19728183,2984.2,2984.1,0.35025291]
[1752560150506,20.57128183,2984.2,2984.1,0.35025291]
[1752560152087,13.51829413,2984.1,2984.0,1e-08]
[1752560152263,13.97049413,2984.1,2984.0,1e-08]
[1752560152682,14.68730643,2984.0,2983.9,1e-08]
[1752560152900,20.51350643,2984.0,2983.9,1e-08]
[1752560153601,4.13764338,2983.7,2983.6,1e-08]
[1752560153899,19.20655721,2983.7,2983.6,1e-08]
[1752560154087,20.20875721,2983.7,2983.6,1e-08]
[1752560155002,14.83475721,2983.7,2983.6,1e-08]
[1752560155165,20.20875721,2983.7,2983.6,1e-08]
[1752560155906,30.20875721,2983.7,2983.6,1e-08]
[1752560157496,60.20875721,2983.7,2983.6,1e-08]
[1752560160806,62.21975721,2983.7,2983.6,1e-08]
[1752560161006,4.67360512,2983.2,2983.1,0.04]